bitfinex-derivatives/quotes_BTCF0:USTF0_20260315
["timestamp","ask_amount","ask_price","bid_price","bid_amount"]
[1773580097241,0.05388988,71605.0,71583.0,0.05309639]
[1773580097446,0.21665858,71604.0,71583.0,0.05309639]
[1773580097648,0.05388988,71605.0,71583.0,0.05309639]
[1773580097949,0.2166573,71604.0,71583.0,0.05309639]
[1773580098141,0.05388988,71605.0,71583.0,0.05309639]
[1773580098446,0.21665548,71604.0,71583.0,0.05309639]
[1773580098647,0.05388988,71602.0,71582.0,0.0014]
[1773580098952,0.05388988,71602.0,71583.0,0.0014]
[1773580099433,0.05388988,71602.0,71584.0,0.0014]
[1773580099937,0.05405925,71606.0,71584.0,0.05449639]
[1773580100144,0.21663339,71605.0,71584.0,0.05449639]
[1773580100344,0.21663339,71604.0,71584.0,0.05449639]
[1773580100547,0.21663339,71603.0,71584.0,0.05449639]
[1773580100749,0.05388988,71602.0,71584.0,0.0014]
[1773580101241,0.05388988,71602.0,71572.0,0.00367]
[1773580101242,0.05388988,71600.0,71570.0,0.32185108]
[1773580101436,0.05388988,71598.0,71570.0,0.32185108]
[1773580101638,0.00016937,71606.0,71570.0,0.32185108]
[1773580101639,0.05388988,71596.0,71570.0,0.32185108]
[1773580101839,0.05189235,71594.0,71570.0,0.32185108]
[1773580102046,0.05189235,71592.0,71570.0,0.32185108]
[1773580102245,0.0014,71601.0,71570.0,0.32185108]
[1773580102246,0.21666355,71591.0,71571.0,0.04805456]
[1773580102551,0.05189235,71596.0,71571.0,0.04805456]
[1773580102844,0.05189235,71600.0,71571.0,0.04805456]
[1773580103038,0.21472066,71599.0,71571.0,0.04805456]
[1773580103233,0.21472066,71598.0,71571.0,0.04805456]
[1773580103436,0.05189235,71600.0,71571.0,0.04805456]
[1773580104848,0.05189235,71600.0,71572.0,0.04805456]
[1773580105041,0.05189235,71600.0,71574.0,0.04805456]
[1773580109257,0.05189235,71598.0,71574.0,0.04805456]
[1773580113554,0.21819337,71597.0,71574.0,0.04805456]
[1773580113755,0.05189235,71598.0,71574.0,0.04805456]
[1773580113956,0.21819363,71597.0,71574.0,0.04805456]
[1773580114260,0.05189235,71598.0,71574.0,0.04805456]
[1773580114460,0.05189235,71596.0,71575.0,0.0014]
[1773580114656,0.05189235,71594.0,71571.0,0.1618537]
[1773580114861,0.21819382,71593.0,71572.0,0.0014]
[1773580115053,0.05189235,71591.0,71573.0,0.0014]
[1773580115255,0.05189235,71589.0,71573.0,0.0014]
[1773580117561,0.05189235,71589.0,71574.0,0.0014]
[1773580117863,0.05189235,71587.0,71574.0,0.0014]
[1773580124073,0.05189235,71587.0,71570.0,0.32185108]
[1773580124277,0.05189235,71585.0,71570.0,0.1809968]
[1773580124576,0.05189235,71583.0,71570.0,0.1809968]
[1773580124873,0.05189235,71581.0,71570.0,0.1809968]
[1773580125273,0.05329235,71585.0,71570.0,0.1809968]
[1773580125478,0.05189235,71583.0,71570.0,0.1809968]
[1773580125678,0.05189235,71581.0,71570.0,0.1809968]
[1773580125979,0.05189235,71579.0,71570.0,0.1809968]
[1773580126582,0.05189235,71579.0,71570.0,0.11388217]
[1773580127369,0.05189235,71579.0,71538.0,0.01025853]
[1773580127370,0.00237194,71577.0,71538.0,0.01025853]
[1773580127570,0.00080658,71575.0,71542.0,0.10846804]
[1773580127775,0.0203,71578.0,71538.0,0.01165853]
[1773580127776,0.00080658,71573.0,71543.0,0.05360128]
[1773580127982,0.00991346,71571.0,71543.0,0.05360128]
[1773580128179,0.00991346,71569.0,71544.0,0.05486676]
[1773580128381,0.00991346,71567.0,71545.0,0.0014]
[1773580128584,0.00555163,71565.0,71546.0,0.0014]
[1773580129382,0.01390351,71564.0,71545.0,0.0014]
[1773580129583,0.00610954,71562.0,71538.0,0.01025853]
[1773580129782,0.00610954,71560.0,71538.0,0.00414899]
[1773580129979,0.00306465,71558.0,71538.0,0.00414899]
[1773580130281,0.00306465,71556.0,71538.0,0.00108434]
[1773580130478,0.0040992,71554.0,71538.0,0.00108434]
[1773580130678,0.0040992,71552.0,71538.0,0.00108434]
[1773580130876,0.0014,71551.0,71538.0,0.00108434]
[1773580131084,0.00430683,71550.0,71538.0,0.00108434]
[1773580131486,0.00430683,71550.0,71538.0,0.00103434]
[1773580132380,0.001,71556.0,71538.0,0.00103434]
[1773580132580,0.0014,71555.0,71538.0,0.00103434]
[1773580132782,0.0014,71554.0,71538.0,0.00103434]
[1773580133886,0.001,71556.0,71538.0,0.00103434]
[1773580134186,0.0014,71555.0,71538.0,0.00103434]
[1773580135587,9.983e-05,71554.0,71538.0,0.00103434]
[1773580136182,0.00109983,71554.0,71538.0,0.00103434]
[1773580136383,0.22239044,71553.0,71531.0,0.000699]
[1773580136584,0.52991044,71552.0,71496.0,0.01010447]
[1773580136787,0.53131044,71551.0,71500.0,0.05837871]
[1773580136982,0.22239044,71550.0,71500.0,0.11592745]
[1773580137287,0.22239044,71549.0,71501.0,0.05754874]
[1773580137486,0.22379044,71548.0,71507.0,0.00942612]
[1773580137686,0.22239044,71547.0,71500.0,0.05745889]
[1773580137875,0.17302028,71551.0,71500.0,0.05745889]
[1773580137876,0.22239044,71546.0,71500.0,0.05745889]
[1773580138081,0.22239044,71545.0,71500.0,0.05745889]
[1773580138276,0.22379044,71544.0,71501.0,0.05745783]
[1773580138485,0.22254876,71543.0,71501.0,0.05745783]
[1773580138682,0.22390689,71542.0,71514.0,0.00417612]
[1773580138882,0.22379044,71541.0,71510.0,0.05786478]
[1773580139087,0.22239044,71540.0,71510.0,0.05926478]
[1773580139296,0.0014,71541.0,71510.0,0.05926478]
[1773580139500,0.22316376,71540.0,71519.0,0.00417612]
[1773580139695,0.22176376,71539.0,71519.0,0.00417612]
[1773580139890,0.001,71541.0,71520.0,0.01382413]
[1773580140091,0.001,71540.0,71514.0,0.05879899]
[1773580140396,0.0024,71540.0,71514.0,0.05879899]
[1773580140598,0.0024,71540.0,71525.0,0.00417612]
[1773580140796,0.001,71539.0,71525.0,0.00417612]
[1773580140995,0.001,71539.0,71515.0,0.01382413]
[1773580141188,0.22164758,71538.0,71504.0,0.00367]
[1773580141392,0.22164758,71537.0,71504.0,0.01749413]
[1773580141593,0.22180868,71536.0,71504.0,0.02167025]
[1773580141802,0.22164758,71535.0,71507.0,0.05710171]
[1773580142098,0.041935,71528.0,71509.0,0.05710171]
[1773580142285,0.0420921,71536.0,71517.0,0.041941]
[1773580142487,0.0420921,71536.0,71518.0,0.05710171]
[1773580142988,0.0420921,71536.0,71530.0,0.00417612]
[1773580143191,0.041931,71534.0,71530.0,1.2e-07]
[1773580143384,0.041931,71534.0,71521.0,0.0570275]
[1773580143591,0.041931,71534.0,71522.0,0.01382413]
[1773580143792,0.041933,71532.0,71522.0,0.01382413]
[1773580143990,0.042931,71535.0,71522.0,0.07070995]
[1773580144198,0.041932,71533.0,71522.0,0.07070995]
[1773580144382,0.001,71535.0,71522.0,0.01382413]
[1773580144898,0.041931,71535.0,71522.0,0.0706712]
[1773580145293,0.0021611,71536.0,71522.0,0.0706712]
[1773580145599,0.001,71534.0,71522.0,0.0706712]
[1773580145795,0.16880958,71568.0,71522.0,0.0706712]
[1773580145999,0.041923,71541.0,71524.0,0.05683824]
[1773580146296,0.041922,71544.0,71527.0,0.05682824]
[1773580146490,0.041922,71544.0,71510.0,0.17098487]
[1773580146491,0.041922,71544.0,71529.0,0.05682824]
[1773580146691,0.041923,71542.0,71531.0,0.05663003]
[1773580146999,0.00012453,71541.0,71531.0,0.05803003]
[1773580147296,0.0014,71548.0,71532.0,0.07045416]
[1773580147484,0.001,71544.0,71532.0,0.07045416]
[1773580148301,0.041923,71541.0,71532.0,0.05663003]
[1773580148491,0.001,71544.0,71533.0,0.01382413]
[1773580148692,0.05346651,71532.0,71507.0,0.05294565]
[1773580148895,0.041934,71523.0,71507.0,0.05294565]
[1773580149092,0.041932,71526.0,71508.0,0.041942]
[1773580149289,0.041932,71526.0,71509.0,0.05294565]
[1773580149490,0.041933,71524.0,71509.0,0.05294565]
[1773580149694,0.05346651,71519.0,71503.0,0.0014]
[1773580149895,0.041942,71509.0,71503.0,0.0014]
[1773580150295,0.05486651,71519.0,71502.0,0.0014]
[1773580150498,0.041944,71506.0,71502.0,0.0014]
[1773580150802,0.0014,71519.0,71500.0,7.6e-07]
[1773580150803,0.041946,71501.0,71500.0,7.6e-07]
[1773580150995,0.041948,71499.0,71496.0,2.3e-07]
[1773580151197,0.05346651,71506.0,71483.0,0.05294565]
[1773580151391,0.0014,71506.0,71484.0,0.05434565]
[1773580151598,0.041946,71502.0,71485.0,0.05294565]
[1773580151798,0.041946,71502.0,71486.0,0.041955]
[1773580151994,0.05346651,71510.0,71484.0,0.0014]
[1773580151995,0.041947,71500.0,71487.0,0.05294565]
[1773580152195,0.05346651,71507.0,71487.0,0.05294565]
[1773580152702,0.04195,71495.0,71484.0,0.0014]
[1773580152902,0.05346651,71498.0,71485.0,0.0014]
[1773580153293,0.041952,71492.0,71482.0,0.01251295]
[1773580153492,0.0014,71499.0,71482.0,0.0654586]
[1773580153698,0.0014,71501.0,71482.0,0.0654586]
[1773580153901,0.04295853,71515.0,71482.0,0.01111295]
[1773580153902,0.041951,71494.0,71482.0,0.01111295]
[1773580154093,0.041952,71492.0,71482.0,0.01111295]
[1773580154292,0.0014,71502.0,71482.0,0.01111295]
[1773580154293,0.041953,71490.0,71482.0,9.5e-07]
[1773580154493,0.05346651,71501.0,71481.0,4.4e-07]
[1773580154693,0.041952,71493.0,71481.0,4.4e-07]
[1773580154898,0.041952,71492.0,71481.0,4.4e-07]
[1773580155094,0.041952,71492.0,71469.0,0.00368]
[1773580155095,0.05346651,71491.0,71469.0,0.00368]
[1773580155294,0.041957,71483.0,71469.0,0.00368]
[1773580155501,0.041958,71481.0,71469.0,0.00368]
[1773580155699,0.05346651,71485.0,71469.0,0.00368]
[1773580155901,0.041959,71481.0,71469.0,0.00368]
[1773580156296,0.041962,71474.0,71468.0,0.01225869]
[1773580156590,0.05346651,71481.0,71468.0,0.0014]
[1773580156798,0.05346651,71473.0,71412.0,0.00924236]
[1773580156995,0.05346651,71472.0,71441.0,0.05294565]
[1773580157201,0.05346651,71481.0,71459.0,0.041971]
[1773580157400,0.041964,71471.0,71460.0,0.0014]
[1773580157698,0.041965,71470.0,71460.0,0.0014]
[1773580157898,0.05346651,71474.0,71460.0,0.0014]
[1773580157899,0.00010527,71469.0,71460.0,0.0014]
[1773580158105,0.0014,71475.0,71460.0,0.0014]
[1773580158504,0.05486651,71475.0,71460.0,0.0014]
[1773580158803,0.041965,71470.0,71460.0,0.0014]
[1773580158996,0.041973,71457.0,71442.0,0.0014]
[1773580159207,0.05346651,71460.0,71442.0,0.0014]
[1773580159503,0.041973,71456.0,71439.0,0.0014]
[1773580159895,0.00144142,71459.0,71440.0,0.06194377]
[1773580160111,4.142e-05,71459.0,71442.0,0.041981]
[1773580160410,0.041975,71453.0,71440.0,0.00899812]
[1773580160803,0.041974,71455.0,71440.0,0.00899812]
[1773580161103,0.041975,71452.0,71440.0,0.00899812]
[1773580161305,0.05486651,71454.0,71438.0,0.00010048]
[1773580161493,4.142e-05,71459.0,71439.0,0.05294565]
[1773580161803,0.17337979,71490.0,71438.0,0.00010048]
[1773580161804,0.05346651,71469.0,71448.0,0.06019403]
[1773580161995,0.041967,71467.0,71450.0,0.06019403]
[1773580162196,0.05445492,71489.0,71450.0,0.06159403]
[1773580162398,0.041955,71487.0,71472.0,0.06019403]
[1773580162596,0.041955,71487.0,71472.0,0.06159403]
[1773580162900,0.043352,71491.0,71473.0,0.10215603]
[1773580163209,0.041949,71496.0,71480.0,0.10215303]
[1773580163398,0.041951,71494.0,71481.0,0.0014]
[1773580163600,0.041952,71492.0,71481.0,0.0014]
[1773580163803,0.001,71487.0,71481.0,0.0014]
[1773580164001,0.041953,71490.0,71481.0,0.0014]
[1773580164399,0.041953,71490.0,71480.0,0.06159403]
[1773580164710,0.041953,71490.0,71481.0,0.0014]
[1773580165008,0.001,71487.0,71475.0,0.06019403]
[1773580165204,0.001,71487.0,71476.0,0.0014]
[1773580165413,0.05445492,71473.0,71462.0,0.00368]
[1773580165702,0.05445492,71477.0,71462.0,0.00368]
[1773580165907,0.041963,71474.0,71462.0,0.00368]
[1773580166105,0.043363,71474.0,71462.0,0.00368]
[1773580166402,0.041963,71474.0,71462.0,0.00368]
[1773580166600,0.041964,71472.0,71462.0,0.00368]
[1773580167000,0.041964,71472.0,71458.0,0.06159403]
[1773580167407,0.0014,71477.0,71458.0,0.06159403]
[1773580167703,0.001,71490.0,71458.0,0.06019403]
[1773580167909,0.05445492,71474.0,71459.0,0.0014]
[1773580168105,0.041964,71472.0,71460.0,0.0014]
[1773580168301,0.041964,71472.0,71461.0,0.0014]
[1773580168896,0.041965,71471.0,71461.0,0.0014]
[1773580169410,0.05445492,71469.0,71450.0,0.0014]
[1773580169609,0.041972,71457.0,71450.0,0.0014]
[1773580170205,0.041971,71460.0,71450.0,0.0014]
[1773580170609,0.041972,71459.0,71450.0,0.0014]
[1773580170806,0.05445492,71464.0,71441.0,0.0014]
[1773580170999,0.05445492,71458.0,71441.0,0.0014]
[1773580171504,0.05445492,71456.0,71438.0,0.00010048]
[1773580171705,0.05445492,71455.0,71438.0,0.00010048]
[1773580171912,0.01619257,71459.0,71438.0,0.00010048]
[1773580172102,0.05445492,71460.0,71438.0,0.00010048]
[1773580172103,0.0014,71458.0,71438.0,0.06029451]
[1773580172303,0.05585492,71458.0,71438.0,0.06029451]
[1773580172510,0.05445492,71457.0,71438.0,0.00010048]
[1773580172814,0.05445492,71445.0,71419.0,0.06019403]
[1773580173008,0.041983,71439.0,71425.0,0.10218503]
[1773580173205,0.041984,71438.0,71426.0,0.0014]
[1773580173401,0.041984,71438.0,71425.0,0.0014]
[1773580173612,0.043382,71441.0,71425.0,0.0014]
[1773580173804,0.00010245,71440.0,71425.0,0.10358503]
[1773580174105,0.041975,71453.0,71438.0,0.041983]
[1773580174300,0.05445492,71448.0,71433.0,0.0014]
[1773580174500,0.05445492,71448.0,71430.0,0.0014]
[1773580174698,0.041982,71441.0,71431.0,0.0014]
[1773580174996,0.041982,71441.0,71426.0,0.10218403]
[1773580175201,0.041984,71438.0,71421.0,0.06019403]
[1773580175401,0.0014,71448.0,71428.0,0.10218303]
[1773580175710,0.04198,71443.0,71429.0,0.0014]
[1773580175904,0.0014,71448.0,71433.0,0.06019403]
[1773580176105,0.0014,71448.0,71434.0,0.06019403]
[1773580176304,0.043378,71448.0,71434.0,0.06019403]
[1773580176507,0.041978,71448.0,71434.0,0.06019403]
[1773580177002,0.0014,71456.0,71437.0,0.041984]
[1773580177320,0.05585492,71456.0,71438.0,0.0014]
[1773580177914,0.041976,71450.0,71438.0,0.0014]
[1773580178403,0.05445492,71456.0,71438.0,0.0014]
[1773580178603,0.041976,71451.0,71438.0,0.0014]
[1773580179300,0.041977,71449.0,71432.0,0.06019403]
[1773580179507,0.05445492,71456.0,71438.0,0.0014]
[1773580179696,0.05445492,71454.0,71434.0,0.0014]
[1773580179901,0.05585492,71454.0,71434.0,0.0014]
[1773580180102,0.0014,71454.0,71434.0,0.06159403]
[1773580180301,0.05445492,71459.0,71435.0,0.06019403]
[1773580180504,0.17202322,71484.0,71420.0,0.17470217]
[1773580180505,0.05445492,71457.0,71433.0,0.0014]
[1773580180702,0.041979,71446.0,71433.0,0.0014]
[1773580180899,0.0014,71451.0,71433.0,0.06159403]
[1773580181109,0.041975,71453.0,71439.0,0.041982]
[1773580181310,0.001,71454.0,71438.0,0.06019403]
[1773580181714,0.041977,71450.0,71438.0,0.06019403]
[1773580182106,0.05445492,71455.0,71434.0,0.041986]
[1773580182306,0.05445492,71455.0,71435.0,0.041985]
[1773580182508,0.041977,71449.0,71435.0,0.041985]
[1773580182815,0.05445492,71455.0,71433.0,0.10358003]
[1773580183119,0.04198,71444.0,71433.0,0.0014]
[1773580183617,0.041979,71446.0,71433.0,0.0014]
[1773580184220,0.041978,71448.0,71434.0,0.06019403]
[1773580184515,0.041979,71447.0,71434.0,0.06019403]
[1773580184910,0.041979,71446.0,71433.0,0.043386]
[1773580185109,0.04198,71445.0,71433.0,0.0014]
[1773580185307,0.05445492,71447.0,71433.0,0.0014]
[1773580185704,0.041982,71441.0,71433.0,0.0014]
[1773580185905,0.05585492,71447.0,71433.0,0.0014]
[1773580186108,0.041978,71448.0,71435.0,0.06019403]
[1773580186319,0.0014,71454.0,71435.0,0.10217903]
[1773580186507,0.0014,71454.0,71437.0,0.041984]
[1773580186707,0.0014,71454.0,71437.0,0.06019403]
[1773580186903,0.041974,71454.0,71437.0,0.06019403]
[1773580187220,0.05445492,71461.0,71436.0,0.041985]
[1773580187517,0.05445492,71456.0,71434.0,0.06019403]
[1773580187813,0.05445492,71460.0,71418.0,0.06019403]
[1773580188012,0.041977,71449.0,71428.0,0.06019403]
[1773580188315,0.041977,71449.0,71436.0,0.041984]
[1773580188507,0.05445492,71456.0,71439.0,0.041982]
[1773580188705,0.05445492,71469.0,71444.0,0.041979]
[1773580188915,0.05445492,71469.0,71441.0,0.06019403]
[1773580188916,0.041976,71452.0,71445.0,0.0014]
[1773580189112,0.05445492,71461.0,71445.0,0.0014]
[1773580189506,0.05445492,71458.0,71445.0,0.0014]
[1773580189708,0.041973,71456.0,71445.0,0.0014]
[1773580190216,0.041971,71459.0,71445.0,0.0014]
[1773580190403,0.04197,71461.0,71445.0,0.0014]
[1773580190602,0.05445492,71462.0,71445.0,0.0014]
[1773580190815,0.041971,71459.0,71445.0,0.0014]
[1773580191114,0.041973,71456.0,71445.0,0.0014]
[1773580191504,0.05445492,71462.0,71445.0,0.0014]
[1773580191705,0.041975,71453.0,71445.0,0.0014]
[1773580192110,0.05445492,71462.0,71445.0,0.0014]
[1773580192310,0.041978,71447.0,71438.0,0.0014]
[1773580192617,0.041978,71447.0,71439.0,0.0014]
[1773580192807,0.04198,71445.0,71440.0,0.0014]
[1773580193116,0.04198,71445.0,71441.0,0.0014]
[1773580193318,0.041977,71450.0,71440.0,0.0014]
[1773580193515,0.05693953,71458.0,71440.0,0.0014]
[1773580194017,0.05553953,71454.0,71440.0,0.0014]
[1773580194207,0.041977,71449.0,71440.0,0.0014]
[1773580195511,0.041966,71468.0,71440.0,0.05752414]
[1773580195512,0.05553953,71459.0,71440.0,0.05752414]
[1773580195817,0.05553953,71464.0,71442.0,0.05612414]
[1773580196011,0.22375434,71463.0,71442.0,0.05612414]
[1773580196316,0.05553953,71461.0,71440.0,0.0014]
[1773580196510,0.22375434,71460.0,71440.0,0.0014]
[1773580196703,0.05553953,71459.0,71440.0,0.0014]
[1773580196907,0.05553953,71465.0,71440.0,0.0014]
[1773580197209,0.041976,71452.0,71440.0,0.0014]
[1773580197407,0.041976,71451.0,71440.0,0.0014]
[1773580197606,0.05553953,71457.0,71441.0,0.0014]
[1773580197805,0.05553953,71455.0,71439.0,0.0014]
[1773580198005,0.041978,71448.0,71439.0,0.0014]
[1773580198209,0.05553953,71451.0,71439.0,0.0014]
[1773580199408,0.05553953,71458.0,71439.0,0.0014]
[1773580199614,0.041977,71449.0,71439.0,0.0014]
[1773580200412,0.05553953,71456.0,71439.0,0.0014]
[1773580200612,0.05553953,71440.0,71420.0,0.05612414]
[1773580200813,0.041987,71432.0,71427.0,0.0014]
[1773580201020,0.041986,71434.0,71427.0,0.0014]
[1773580201212,0.05553953,71444.0,71427.0,0.0014]
[1773580201414,0.22423568,71443.0,71427.0,0.0014]
[1773580201613,0.22423568,71442.0,71427.0,0.0014]
[1773580201818,0.041984,71437.0,71427.0,0.05752414]
[1773580202917,0.0014,71447.0,71427.0,0.05752414]
[1773580203218,0.22420743,71446.0,71427.0,0.05752414]
[1773580203419,0.22420743,71445.0,71427.0,0.05752414]
[1773580203618,0.22420743,71444.0,71427.0,0.05752414]
[1773580203808,0.041983,71439.0,71427.0,0.05752414]
[1773580204411,0.04197,71462.0,71431.0,0.05612414]
[1773580204610,0.04198,71444.0,71431.0,0.05612414]
[1773580204810,0.0014,71456.0,71432.0,0.05612414]
[1773580205116,0.05553953,71454.0,71426.0,0.05612414]
[1773580205316,0.041987,71432.0,71427.0,0.0014]
[1773580205511,0.05553953,71445.0,71428.0,0.0014]
[1773580205819,0.05553953,71445.0,71429.0,0.0014]
[1773580206118,0.041984,71437.0,71429.0,0.0014]
[1773580206316,0.05553953,71449.0,71429.0,0.0014]
[1773580206317,0.0014,71446.0,71429.0,0.0014]
[1773580206620,0.05553953,71449.0,71429.0,0.0014]
[1773580206621,0.041984,71437.0,71429.0,0.0014]
[1773580206921,0.041983,71440.0,71429.0,0.05752414]
[1773580207715,0.04198,71444.0,71429.0,1e-06]
[1773580207912,0.05553953,71445.0,71429.0,1e-06]
[1773580209814,0.041985,71436.0,71429.0,1e-06]
[1773580210514,0.041988,71431.0,71429.0,1e-06]
[1773580210713,0.041986,71433.0,71422.0,0.05612414]
[1773580210915,0.041986,71433.0,71423.0,0.0014]
[1773580211121,0.041985,71435.0,71423.0,0.05752414]
[1773580211318,0.041974,71455.0,71424.0,0.05612414]
[1773580211520,0.05553953,71449.0,71424.0,0.041992]
[1773580211711,0.27938258,71448.0,71425.0,0.05612414]
[1773580211912,0.041982,71441.0,71428.0,0.05612414]
[1773580212111,0.041981,71443.0,71424.0,0.05612414]
[1773580212321,0.0014,71451.0,71429.0,0.05612414]
[1773580212525,0.041983,71440.0,71430.0,0.05752414]
[1773580212717,0.041983,71440.0,71431.0,0.0014]
[1773580212921,0.05693953,71451.0,71431.0,0.0014]
[1773580213127,0.041983,71439.0,71431.0,0.0014]
[1773580213327,0.05553953,71450.0,71388.0,0.348933]
[1773580213527,0.04199,71428.0,71411.0,0.0014]
[1773580213821,0.041989,71430.0,71416.0,0.041996]
[1773580214125,0.0014,71445.0,71419.0,0.05612414]
[1773580214423,0.041986,71435.0,71421.0,0.05612414]
[1773580214623,0.041985,71435.0,71422.0,0.05752414]
[1773580214816,0.041987,71433.0,71423.0,0.0014]
[1773580215022,0.05553953,71453.0,71413.0,0.05612414]
[1773580215219,0.05553953,71432.0,71414.0,0.0014]
[1773580215418,0.05553953,71443.0,71414.0,0.05752414]
[1773580215617,0.05553953,71441.0,71415.0,0.041997]
[1773580215818,0.041987,71432.0,71418.0,0.05612414]
[1773580216216,0.041988,71431.0,71418.0,0.05612414]
[1773580216423,0.05553953,71441.0,71418.0,0.05612414]
[1773580216612,0.041988,71431.0,71418.0,0.05612414]
[1773580216819,0.05553953,71437.0,71416.0,0.041996]
[1773580217132,0.041987,71433.0,71417.0,0.041996]
[1773580217322,0.05553953,71447.0,71425.0,0.05612414]
[1773580217621,0.05553953,71447.0,71426.0,0.05752414]
[1773580217827,0.05553953,71447.0,71410.0,0.00368]
[1773580217828,0.041979,71446.0,71433.0,0.05612414]
[1773580218032,0.041979,71446.0,71434.0,0.05752414]
[1773580218218,0.05553953,71455.0,71434.0,0.05752414]
[1773580218418,0.04198,71445.0,71434.0,0.05752414]
[1773580218733,0.041982,71441.0,71435.0,0.0014]
[1773580218920,0.04198,71444.0,71436.0,0.0014]
[1773580219121,0.001,71446.0,71437.0,0.0014]
[1773580219429,0.04198,71444.0,71437.0,0.0014]
[1773580219635,0.041981,71442.0,71438.0,0.0014]
[1773580219835,0.001,71445.0,71438.0,0.0014]
[1773580220037,0.041975,71453.0,71439.0,0.05612414]
[1773580220225,0.05553953,71464.0,71439.0,0.05612414]
[1773580220416,0.05553953,71462.0,71439.0,0.05612414]
[1773580220730,0.041976,71451.0,71439.0,0.05612414]
[1773580221332,0.041974,71455.0,71439.0,0.05612414]
[1773580221629,0.041975,71454.0,71441.0,0.05612414]
[1773580221829,0.001,71451.0,71441.0,0.05612414]
[1773580222229,0.041972,71458.0,71445.0,0.05962025]
[1773580222425,0.041973,71456.0,71446.0,0.06102025]
[1773580222632,0.05581624,71468.0,71447.0,0.10299825]
[1773580222831,0.041971,71459.0,71448.0,0.06102025]
[1773580223136,0.041971,71459.0,71449.0,0.0014]
[1773580223433,0.05581624,71468.0,71449.0,0.0014]
[1773580223933,0.05581624,71473.0,71449.0,0.0014]
[1773580224525,0.041972,71458.0,71449.0,0.0014]
[1773580225536,0.041972,71459.0,71449.0,0.0014]
[1773580225933,0.041972,71458.0,71449.0,0.0014]
[1773580226128,0.05581624,71472.0,71449.0,0.0014]
[1773580226328,0.05581624,71473.0,71449.0,0.0014]
[1773580226533,0.05581624,71467.0,71436.0,0.00368]
[1773580226732,0.05581624,71440.0,71433.0,0.0014]
[1773580227234,0.041984,71438.0,71433.0,0.0014]
[1773580227821,0.041984,71438.0,71418.0,0.308]
[1773580227822,0.05581624,71449.0,71432.0,0.0014]
[1773580228032,0.041986,71433.0,71432.0,0.0014]
[1773580228540,0.041987,71432.0,71419.0,0.05962025]
[1773580228724,0.041987,71432.0,71420.0,0.0014]
[1773580228927,0.041987,71432.0,71419.0,0.05962025]
[1773580229126,0.041988,71431.0,71420.0,0.0014]
[1773580229329,0.05581624,71438.0,71420.0,0.0014]
[1773580229537,0.041989,71429.0,71420.0,0.0014]
[1773580230138,0.04199,71428.0,71420.0,0.0014]
[1773580230442,0.04199,71427.0,71420.0,0.0014]
[1773580230832,0.041989,71429.0,71420.0,0.0014]
[1773580231034,0.041989,71429.0,71420.0,0.06202025]
[1773580231535,0.05581624,71443.0,71420.0,0.10401425]
[1773580231727,0.041988,71431.0,71420.0,0.06302025]
[1773580231932,0.041988,71431.0,71420.0,0.0034]
[1773580232639,0.041989,71429.0,71421.0,0.0014]
[1773580233732,0.041988,71431.0,71421.0,0.0014]
[1773580234040,0.05581624,71436.0,71421.0,0.0014]
[1773580234630,0.041987,71433.0,71421.0,0.0014]
[1773580234930,0.05581624,71436.0,71421.0,0.0024]
[1773580234931,0.041987,71432.0,71421.0,0.0024]
[1773580235431,0.05581624,71442.0,71422.0,0.041992]
[1773580235631,0.041986,71435.0,71422.0,0.10161225]
[1773580235844,0.05581624,71442.0,71421.0,0.0014]
[1773580236046,0.0014,71450.0,71421.0,0.0014]
[1773580236241,0.05581624,71448.0,71421.0,0.0014]
[1773580236543,0.04198,71445.0,71422.0,0.0014]
[1773580236842,0.041989,71429.0,71423.0,0.0014]
[1773580237044,0.041989,71429.0,71424.0,0.0014]
[1773580237241,0.041989,71429.0,71425.0,0.0014]
[1773580237437,0.041988,71431.0,71425.0,0.0014]
[1773580237745,0.05581624,71447.0,71425.0,0.0014]
[1773580238047,0.05581624,71445.0,71425.0,0.0014]
[1773580238247,0.05581624,71443.0,71425.0,0.0014]
[1773580238940,0.05581624,71436.0,71426.0,0.0014]
[1773580239146,0.05581624,71432.0,71421.0,0.0014]
[1773580239338,0.05581624,71432.0,71412.0,0.00924236]
[1773580239339,0.041991,71426.0,71422.0,0.0014]
[1773580239539,0.041992,71424.0,71423.0,0.0014]
[1773580241244,0.041993,71422.0,71412.0,0.00924236]
[1773580241436,0.04199,71427.0,71414.0,0.10161825]
[1773580241636,0.041991,71425.0,71413.0,0.0014]
[1773580242038,0.05581624,71445.0,71414.0,0.05962025]
[1773580242245,0.05581624,71443.0,71417.0,0.041995]
[1773580242451,0.05581624,71440.0,71414.0,0.05962025]
[1773580243151,0.05581624,71446.0,71414.0,0.05962025]
[1773580243348,0.041988,71430.0,71417.0,0.041995]
[1773580243848,0.05581624,71446.0,71418.0,0.041995]
[1773580244038,0.05581624,71442.0,71417.0,0.05962025]
[1773580244640,0.05581624,71447.0,71417.0,0.05962025]
[1773580244841,0.041984,71438.0,71426.0,0.05962025]
[1773580245045,0.041984,71438.0,71414.0,0.165335]
[1773580245046,0.041986,71434.0,71427.0,0.0014]
[1773580245245,0.041986,71434.0,71428.0,0.0014]
[1773580245446,0.041986,71434.0,71429.0,0.0014]
[1773580245846,0.05581624,71441.0,71415.0,0.05962025]
[1773580246048,0.05581624,71441.0,71412.0,0.00924236]
[1773580246049,0.05581624,71428.0,71416.0,0.0014]
[1773580246250,0.041983,71439.0,71404.0,0.00070016]
[1773580246251,0.042,71411.0,71404.0,0.00070016]
[1773580246447,0.041999,71412.0,71405.0,0.0014]
[1773580246641,0.042,71410.0,71405.0,0.0014]
[1773580246848,0.041999,71412.0,71405.0,0.0014]
[1773580247355,0.05721624,71432.0,71405.0,0.0014]
[1773580247551,0.041997,71415.0,71405.0,0.0014]
[1773580247745,0.041993,71422.0,71408.0,0.042001]
[1773580247945,0.041994,71421.0,71408.0,0.10162125]
[1773580248150,0.05581624,71432.0,71405.0,0.0014]
[1773580248352,0.041998,71414.0,71405.0,0.0014]
[1773580248551,0.041995,71418.0,71405.0,0.0014]
[1773580248754,0.041996,71417.0,71405.0,0.0014]
[1773580249056,0.05581624,71421.0,71405.0,0.0014]
[1773580249447,0.041998,71414.0,71405.0,0.0014]
[1773580250763,0.041996,71416.0,71405.0,0.0014]